fUST/lending_fUST_20260703
["ID","MTS","AMOUNT","RATE_DAILY","PERIOD"]
[426915605,1783012238000,-567.524813,0.0002089,2]
[426915612,1783012238000,-567.524813,0.0002089,2]
[426915593,1783012238000,-567.524813,0.0002089,2]
[426915614,1783012238000,-413.40229129,0.00020891,2]
[426915618,1783012238000,-500.0,0.00020995,2]
[426915619,1783012238000,-500.0,0.00020995,2]
[426915621,1783012238000,-256.23362391,0.00021,5]
[426915623,1783012238000,-6047.91580373,0.00021,2]
[426915634,1783012238000,-153.69821256,0.00022885,2]
[426915629,1783012238000,-45365.75443327,0.00021,2]
[426915627,1783012238000,-6362.27019178,0.00021,2]
[426915632,1783012238000,-176.82896378,0.00022882,7]
[426915631,1783012238000,-1993.61722,0.00022605,2]
[426915531,1783012238000,-567.524813,0.0002089,2]
[426915616,1783012238000,-2040.0768993,0.00020979,2]
[426915584,1783012238000,-567.524813,0.0002089,2]
[426915458,1783012238000,-567.524813,0.0002089,2]
[426915586,1783012238000,-567.524813,0.0002089,2]
[426915541,1783012238000,-567.524813,0.0002089,2]
[426915533,1783012238000,-567.524813,0.0002089,2]
[426915537,1783012238000,-500.0,0.0002089,2]
[426915539,1783012238000,-567.524813,0.0002089,2]
[426915547,1783012238000,-567.524813,0.0002089,2]
[426915551,1783012238000,-567.524813,0.0002089,2]
[426915553,1783012238000,-567.524813,0.0002089,2]
[426915555,1783012238000,-567.524813,0.0002089,2]
[426915559,1783012238000,-567.524813,0.0002089,2]
[426915561,1783012238000,-567.524813,0.0002089,2]
[426915557,1783012238000,-567.524813,0.0002089,2]
[426915549,1783012238000,-567.524813,0.0002089,2]
[426915582,1783012238000,-567.524813,0.0002089,2]
[426915566,1783012238000,-567.524813,0.0002089,2]
[426915580,1783012238000,-567.524813,0.0002089,2]
[426915578,1783012238000,-567.524813,0.0002089,2]
[426915590,1783012238000,-567.524813,0.0002089,2]
[426915588,1783012238000,-567.524813,0.0002089,2]
[426915591,1783012238000,-567.524813,0.0002089,2]
[426915570,1783012238000,-567.524813,0.0002089,2]
[426915568,1783012238000,-567.524813,0.0002089,2]
[426915563,1783012238000,-567.524813,0.0002089,2]
[426915564,1783012238000,-567.524813,0.0002089,2]
[426915687,1783012239000,-570.91548676,0.0002452,2]
[426915672,1783012239000,-254.74564779,0.0002452,2]
[426915674,1783012239000,-461.09463768,0.0002452,2]
[426915676,1783012239000,-270.77041399,0.0002452,2]
[426915670,1783012239000,-1993.61722,0.00024508,2]
[426915691,1783012239000,-315.46154687,0.0002452,2]
[426915693,1783012239000,-258.00776477,0.0002452,2]
[426915678,1783012239000,-381.5211802,0.0002452,2]
[426915680,1783012239000,-538.52800159,0.0002452,2]
[426915685,1783012239000,-259.47460334,0.0002452,2]
[426915695,1783012239000,-252.677551,0.0002452,2]
[426915668,1783012239000,-171.41152791,0.00023866,2]
[426915682,1783012239000,-492.04470655,0.0002452,2]
[426915660,1783012239000,-328.02980436,0.00023866,2]
[426915644,1783012239000,-170.35558272,0.00022885,2]
[426915664,1783012239000,-340.71116545,0.00023866,2]
[426915662,1783012239000,-380.6103245,0.00023866,2]
[426915656,1783012239000,-572.2817703,0.00023866,2]
[426915658,1783012239000,-359.01866773,0.00023866,2]
[426915654,1783012239000,-307.39642512,0.00023866,2]
[426915652,1783012239000,-771.62,0.00023856,3]
[426915650,1783012239000,-274.776,0.00023833,5]
[426915648,1783012239000,-214.71,0.00023586,2]
[426915642,1783012239000,-190.30516225,0.00022885,2]
[426915646,1783012239000,-1993.61722,0.00023556,2]
[426915701,1783012239000,-5846.49381342,0.0002465,2]
[426915640,1783012239000,-164.01490218,0.00022885,2]
[426915638,1783012239000,-179.50933386,0.00022885,2]
[426915636,1783012239000,-763.0423604,0.00022885,2]
[426915666,1783012239000,-157.73077343,0.00023866,2]
[426915699,1783012239000,-286.13243368,0.0002452,2]
[426915689,1783012239000,-511.06674817,0.0002452,2]
[426915705,1783012239000,-258.02,0.00024908,2]
[426915767,1783012239000,-1745.36680582,0.00025981,2]
[426915764,1783012239000,-471.63319418,0.00025981,2]
[426915759,1783012239000,-300.0,0.00025772,3]
[426915761,1783012239000,-160.0,0.00025967,2]
[426915754,1783012239000,-186.0,0.00025546,2]
[426915762,1783012239000,-150.491,0.00025981,2]
[426915757,1783012239000,-192.9626495,0.00025708,2]
[426915752,1783012239000,-446.0,0.00025546,2]
[426915750,1783012239000,-300.0,0.000255,14]
[426915748,1783012239000,-1993.61722,0.00025459,2]
[426915746,1783012239000,-897.54666931,0.00025392,2]
[426915744,1783012239000,-156.585,0.0002512,2]
[426915742,1783012239000,-313.4164575,0.00024961,2]
[426915697,1783012239000,-342.82305581,0.0002452,2]
[426915731,1783012239000,-509.49129558,0.00024956,2]
[426915735,1783012239000,-228.12437049,0.00024961,2]
[426915729,1783012239000,-761.22064901,0.00024956,2]
[426915703,1783012239000,-12910.32528091,0.0002465,2]
[426915707,1783012239000,-167.129873,0.00024956,2]
[426915713,1783012239000,-518.94920667,0.00024956,2]
[426915709,1783012239000,-718.03733545,0.00024956,2]
[426915733,1783012239000,-190.7605901,0.00024961,2]
[426915711,1783012239000,-172.79385726,0.00024956,2]
[426915718,1783012239000,-473.1923203,0.00024956,2]
[426915720,1783012239000,-162.9977827,0.00024956,2]
[426915768,1783012239000,-143.31119672,0.00025981,2]
[426915722,1783012239000,-516.01552953,0.00024956,2]
[426915726,1783012239000,-572.26486737,0.00024956,2]
[426915724,1783012239000,-505.355102,0.00024956,2]
[426915727,1783012239000,-656.05960873,0.00024956,2]
[426915715,1783012239000,-681.4223309,0.00024956,2]
[426916051,1783012243000,-1638.31345572,0.00025981,2]
[426916050,1783012243000,-1274.68880328,0.00025981,2]
[426916061,1783012246000,-207.68654428,0.00025981,2]
[426916062,1783012246000,-300.0,0.00026,14]
[426916063,1783012246000,-1077.05600318,0.00026046,2]
[426916065,1783012246000,-324.96,0.00026411,2]
[426916060,1783012246000,-151.0,0.00020071,2]
[426916064,1783012246000,-621.47328767,0.00026411,2]
[426916070,1783012369000,295.86692703,0.0002907,120]
[426916072,1783012473000,-151.0,0.00020148,2]
[426916073,1783012526000,-225.42896387,0.00020771,2]
[426916076,1783012579000,-324.96,0.00020887,2]
[426916078,1783012633000,-159.99992,0.00020771,2]
[426916087,1783012686000,-205.76110184,0.00020887,2]
[426916089,1783012739000,-500.0,0.00020926,2]
[426916090,1783012750000,-166.66666667,0.00020905,2]
[426916093,1783012803000,-500.0,0.00020926,2]
[426916094,1783012814000,-2131.53664493,0.00020926,2]
[426916107,1783013269000,21700.0,0.00028767,120]
[426916163,1783013432000,-185.9203815,0.00022889,2]
[426916153,1783013432000,-193.691988,0.00022234,2]
[426916157,1783013432000,-1354.9728366,0.00022781,2]
[426916155,1783013432000,-178.04,0.00022521,2]
[426916165,1783013432000,-2142.90172528,0.00023532,2]
[426916159,1783013432000,-2117.14505718,0.00022781,2]
[426916168,1783013432000,-1707.3525378,0.00023532,2]
[426916170,1783013432000,-369.31870419,0.00023532,2]
[426916172,1783013432000,-761.24822556,0.00023532,2]
[426916177,1783013432000,-689.78558042,0.00023532,2]
[426916161,1783013432000,-3045.64019346,0.00022781,2]
[426916418,1783013438000,-211.45177218,0.00023632,2]
[426916415,1783013438000,-500.0,0.00023632,2]
[426916412,1783013438000,-1064.08605586,0.00023532,2]
[426916649,1783013440000,-500.0,0.00023632,2]
[426916642,1783013440000,-500.0,0.00023632,2]
[426916640,1783013440000,-111.20796246,0.00023632,2]
[426916651,1783013440000,-500.0,0.00023632,2]
[426916647,1783013440000,-500.0,0.00023632,2]
[426916646,1783013440000,-500.0,0.00023632,2]
[426916653,1783013440000,-98.22016405,0.00023632,2]
[426916644,1783013440000,-500.0,0.00023632,2]
[426917365,1783013446000,-500.0,0.00023632,2]
[426917357,1783013446000,-401.77983595,0.00023632,2]
[426917363,1783013446000,-500.0,0.00023632,2]
[426917361,1783013446000,-500.0,0.00023632,2]
[426917369,1783013446000,-500.0,0.00023632,2]
[426917367,1783013446000,-500.0,0.00023632,2]
[426917371,1783013446000,-446.87935499,0.00023632,2]
[426917359,1783013446000,-500.0,0.00023632,2]
[426918634,1783013547000,-198.83035269,0.00022886,2]
[426918635,1783013564000,-151.0,0.00022923,2]
[426918636,1783013597000,525.243007,0.0002846,120]
[426918637,1783014433000,306.34492005,2.01e-05,2]
[426918641,1783014479000,431.19117285,0.00010618,2]
[426918642,1783014488000,322.60826287,0.00015,2]
[426918643,1783014496000,9516.09204137,0.00013,2]
[426918644,1783014503000,254.44880625,0.00015,2]
[426918645,1783014505000,24769.16656535,7.6e-05,2]
[426918646,1783014508000,11381.39155893,0.0001,2]
[426918648,1783014512000,3495.52366526,0.0001,2]
[426918647,1783014512000,43436.76532357,0.00012,2]
[426918649,1783014515000,768.27427085,8.6e-05,2]
[426918650,1783014553000,-3580.08163016,0.00017,2]
[426918651,1783014570000,-3471.98582392,0.00017,2]
[426918843,1783014638000,-500.0,0.00023526,2]
[426918842,1783014638000,-500.0,0.00023526,2]
[426918839,1783014638000,-500.0,0.00023526,2]
[426918836,1783014638000,-500.0,0.00023526,2]
[426918837,1783014638000,-500.0,0.00023526,2]
[426918833,1783014638000,-500.0,0.00023526,2]
[426918829,1783014638000,-500.0,0.00023526,2]
[426918821,1783014638000,-190.0438943,0.00022888,2]
[426918831,1783014638000,-500.0,0.00023526,2]
[426918827,1783014638000,-197.85093968,0.00023426,2]
[426918825,1783014638000,-754.5842648,0.0002342,2]
[426918824,1783014638000,-3237.1357298,0.00023419,2]
[426918819,1783014638000,-168.692121,0.00022683,2]
[426918811,1783014638000,-411.8316132,0.00022503,2]
[426918816,1783014638000,-8273.0659352,0.00022564,2]
[426918797,1783014638000,-256.23362391,0.00021,5]
[426918800,1783014638000,-6047.91580373,0.00021,2]
[426918796,1783014638000,-2189.98176444,0.00018,2]
[426918801,1783014638000,-1290.43406414,0.00021,2]
[426918807,1783014638000,-209.159508,0.00022386,2]
[426918847,1783014638000,-500.0,0.00023526,2]
[426918813,1783014638000,-413.40229129,0.00022503,2]
[426918805,1783014638000,-166.66666666,0.00022286,2]
[426918803,1783014638000,-902.01260473,0.000215,2]
[426918794,1783014638000,-5812.63695264,0.00017,2]
[426918792,1783014638000,-151.0,0.0001649,2]
[426918817,1783014638000,-197.85093969,0.000226,2]
[426918845,1783014638000,-500.0,0.00023526,2]
[426918810,1783014638000,-6819.76299208,0.000225,2]
[426918851,1783014638000,-218.851448,0.00023527,2]
[426918849,1783014638000,-218.851448,0.00023527,2]
[426918904,1783014638000,-263.069423,0.00023527,2]
[426918902,1783014638000,-151.0,0.00023527,2]
[426918900,1783014638000,-151.0,0.00023527,2]
[426918898,1783014638000,-229.726183,0.00023527,2]
[426918895,1783014638000,-151.0,0.00023527,2]
[426918893,1783014638000,-151.0,0.00023527,2]
[426918897,1783014638000,-151.0,0.00023527,2]
[426918887,1783014638000,-218.851448,0.00023527,2]
[426918886,1783014638000,-218.851448,0.00023527,2]
[426918889,1783014638000,-151.0,0.00023527,2]
[426918884,1783014638000,-151.0,0.00023527,2]
[426918878,1783014638000,-151.0,0.00023527,2]
[426918891,1783014638000,-151.0,0.00023527,2]
[426918876,1783014638000,-151.0,0.00023527,2]
[426918880,1783014638000,-151.0,0.00023527,2]
[426918855,1783014638000,-151.0,0.00023527,2]
[426918868,1783014638000,-218.851448,0.00023527,2]
[426918861,1783014638000,-259.479777,0.00023527,2]
[426918859,1783014638000,-151.0,0.00023527,2]
[426918856,1783014638000,-218.851448,0.00023527,2]
[426918858,1783014638000,-151.0,0.00023527,2]
[426918853,1783014638000,-218.851448,0.00023527,2]
[426918863,1783014638000,-151.0,0.00023527,2]
[426918874,1783014638000,-151.0,0.00023527,2]
[426918871,1783014638000,-218.851448,0.00023527,2]
[426918882,1783014638000,-151.0,0.00023527,2]
[426918865,1783014638000,-151.0,0.00023527,2]
[426918948,1783014639000,-193.96,0.00023869,2]
[426918952,1783014639000,-163.24200185,0.0002452,2]
[426918953,1783014639000,-293.54176773,0.0002452,2]
[426918954,1783014639000,-331.37280613,0.0002452,2]
[426918949,1783014639000,-171.4115279,0.00024519,2]
[426918941,1783014639000,-193.96,0.00023628,2]
[426918946,1783014639000,-193.96,0.00023869,2]
[426918956,1783014639000,-218.851448,0.0002452,2]
[426918945,1783014639000,-193.96,0.00023869,2]
[426918947,1783014639000,-193.96,0.00023869,2]
[426918951,1783014639000,-345.7890679,0.0002452,2]
[426918957,1783014639000,-151.0,0.0002452,2]
[426918906,1783014639000,-175.872056,0.00023527,2]
[426918963,1783014639000,-596.47105103,0.0002452,2]
[426918955,1783014639000,-218.851448,0.0002452,2]
[426918959,1783014639000,-151.0,0.0002452,2]
[426918968,1783014639000,-204.93095008,0.00024524,2]
[426918958,1783014639000,-218.851448,0.0002452,2]
[426918961,1783014639000,-218.851448,0.0002452,2]
[426918962,1783014639000,-151.0,0.0002452,2]
[426918965,1783014639000,-180.40827126,0.00024521,2]
[426918960,1783014639000,-151.0,0.0002452,2]
[426918964,1783014639000,-151.0,0.0002452,2]
[426918969,1783014639000,-151.0,0.0002456,2]
[426918967,1783014639000,-570.1316829,0.00024523,2]
[426918966,1783014639000,-167.14962583,0.00024521,2]
[426918970,1783014639000,-151.0,0.0002456,2]
[426918950,1783014639000,-302.56543441,0.0002452,2]
[426918939,1783014639000,-193.96,0.00023628,2]
[426918928,1783014639000,-151.0,0.00023628,2]
[426918935,1783014639000,-193.96,0.00023628,2]
[426918908,1783014639000,-151.0,0.00023527,2]
[426918915,1783014639000,-151.0,0.00023528,2]
[426918912,1783014639000,-218.851448,0.00023528,2]
[426918913,1783014639000,-151.0,0.00023528,2]
[426918910,1783014639000,-218.851448,0.00023528,2]
[426918917,1783014639000,-218.851448,0.00023528,2]
[426918918,1783014639000,-151.0,0.00023528,2]
[426918919,1783014639000,-151.0,0.00023528,2]
[426918925,1783014639000,-151.0,0.00023528,2]
[426918922,1783014639000,-218.851448,0.00023528,2]
[426918921,1783014639000,-151.0,0.00023528,2]
[426918930,1783014639000,-193.96,0.00023628,2]
[426918932,1783014639000,-193.96,0.00023628,2]
[426918924,1783014639000,-152.473977,0.00023528,2]
[426918926,1783014639000,-500.0,0.00023627,2]
[426918923,1783014639000,-151.0,0.00023528,2]
[426918929,1783014639000,-151.0,0.00023628,2]
[426918927,1783014639000,-151.0,0.00023628,2]
[426918931,1783014639000,-193.96,0.00023628,2]
[426918934,1783014639000,-193.96,0.00023628,2]
[426918944,1783014639000,-380.0877886,0.00023869,2]
[426918938,1783014639000,-193.96,0.00023628,2]
[426918933,1783014639000,-193.96,0.00023628,2]
[426918936,1783014639000,-193.96,0.00023628,2]
[426918942,1783014639000,-500.0,0.00023632,2]
[426918937,1783014639000,-193.96,0.00023628,2]
[426918943,1783014639000,-151.0,0.00023632,2]
[426918940,1783014639000,-193.96,0.00023628,2]
[426918971,1783014639000,-193.96,0.0002456,2]
[426918986,1783014639000,-219.019956,0.0002456,2]
[426918973,1783014639000,-193.96,0.0002456,2]
[426919006,1783014639000,-409.86190015,0.00024961,2]
[426919005,1783014639000,-760.17557719,0.00024959,2]
[426919008,1783014639000,-167.684607,0.00024986,2]
[426919010,1783014639000,-950.21947149,0.00025395,2]
[426919015,1783014639000,-446.0,0.00025674,2]
[426919012,1783014639000,-610.379073,0.00025642,2]
[426919014,1783014639000,-1969.005,0.00025674,2]
[426919013,1783014639000,-482.162,0.00025674,2]
[426919017,1783014639000,-151.0,0.00025867,2]
[426919028,1783014639000,-219.019956,0.00026142,2]
[426919018,1783014639000,-151.0,0.00025867,2]
[426919029,1783014639000,-170.774678,0.00026142,2]
[426919027,1783014639000,-170.774678,0.00026142,2]
[426919019,1783014639000,-151.0,0.00025867,2]
[426919016,1783014639000,-186.0,0.00025674,2]
[426919024,1783014639000,-300.0,0.00026,14]
[426919025,1783014639000,-1140.26336579,0.00026049,2]
[426919021,1783014639000,-164.994632,0.00025873,2]
[426919022,1783014639000,-164.994632,0.00025873,2]
[426919023,1783014639000,-164.994632,0.00025873,2]
[426919026,1783014639000,-219.019956,0.00026142,2]
[426919020,1783014639000,-164.994632,0.00025873,2]
[426919030,1783014639000,-225.9,0.00026142,2]
[426919033,1783014639000,-170.774678,0.00026142,2]
[426919034,1783014639000,-219.019956,0.00026142,2]
[426919031,1783014639000,-219.019956,0.00026142,2]
[426918972,1783014639000,-193.96,0.0002456,2]
[426919011,1783014639000,-230.605578,0.00025573,2]
[426919004,1783014639000,-334.29925166,0.00024957,2]
[426918997,1783014639000,-163.028002,0.0002456,2]
[426919007,1783014639000,-6819.76299203,0.00024986,2]
[426919009,1783014639000,-3124.0,0.00025,2]
[426918976,1783014639000,-218.851448,0.0002456,2]
[426918975,1783014639000,-218.851448,0.0002456,2]
[426918977,1783014639000,-151.0,0.0002456,2]
[426918974,1783014639000,-193.96,0.0002456,2]
[426918980,1783014639000,-299.206616,0.0002456,2]
[426918978,1783014639000,-151.0,0.0002456,2]
[426918983,1783014639000,-218.851457,0.0002456,2]
[426918981,1783014639000,-151.0,0.0002456,2]
[426918984,1783014639000,-151.0,0.0002456,2]
[426918988,1783014639000,-219.019956,0.0002456,2]
[426918989,1783014639000,-170.774678,0.0002456,2]
[426918982,1783014639000,-151.0,0.0002456,2]
[426918987,1783014639000,-170.774678,0.0002456,2]
[426918979,1783014639000,-218.851448,0.0002456,2]
[426918991,1783014639000,-219.019956,0.0002456,2]
[426918995,1783014639000,-163.028002,0.0002456,2]
[426918985,1783014639000,-151.0,0.0002456,2]
[426918996,1783014639000,-151.0,0.0002456,2]
[426918998,1783014639000,-284.238212,0.0002456,2]
[426919003,1783014639000,-360.81654252,0.00024957,2]
[426919000,1783014639000,-163.028002,0.0002456,2]
[426918999,1783014639000,-163.028002,0.0002456,2]
[426918993,1783014639000,-219.019956,0.0002456,2]
[426918990,1783014639000,-151.0,0.0002456,2]
[426918992,1783014639000,-170.774678,0.0002456,2]
[426919002,1783014639000,-342.82305581,0.00024955,2]
[426919001,1783014639000,-610.379073,0.00024607,2]
[426918994,1783014639000,-170.774678,0.0002456,2]
[426919074,1783014640000,-151.0,0.00027423,2]
[426919072,1783014640000,-151.0,0.00027423,2]
[426919075,1783014640000,-151.0,0.00027423,2]
[426919077,1783014640000,-151.0,0.00027423,2]
[426919080,1783014640000,-151.0,0.00027423,2]
[426919070,1783014640000,-151.0,0.00027423,2]
[426919078,1783014640000,-151.0,0.00027423,2]
[426919079,1783014640000,-151.0,0.00027423,2]
[426919068,1783014640000,-151.0,0.00027423,2]
[426919069,1783014640000,-151.0,0.00027423,2]
[426919076,1783014640000,-151.0,0.00027423,2]
[426919071,1783014640000,-151.0,0.00027423,2]
[426919073,1783014640000,-154.9926472,0.00027423,2]
[426919104,1783014640000,-151.0,0.00027426,2]
[426919084,1783014640000,-151.0,0.00027423,2]
[426919085,1783014640000,-151.0,0.00027423,2]
[426919086,1783014640000,-151.0,0.00027423,2]
[426919087,1783014640000,-219.019956,0.00027426,7]
[426919088,1783014640000,-170.774678,0.00027426,7]
[426919083,1783014640000,-151.0,0.00027423,2]
[426919089,1783014640000,-219.019956,0.00027426,7]
[426919090,1783014640000,-170.774678,0.00027426,7]
[426919092,1783014640000,-170.774678,0.00027426,7]
[426919091,1783014640000,-219.019956,0.00027426,7]
[426919093,1783014640000,-219.019956,0.00027426,7]
[426919063,1783014640000,-151.0,0.00027421,2]
[426919096,1783014640000,-151.0,0.00027426,7]
[426919082,1783014640000,-151.0,0.00027423,2]
[426919067,1783014640000,-151.0,0.00027423,2]
[426919052,1783014640000,-324.96,0.00027329,2]
[426919062,1783014640000,-151.0,0.00027421,2]
[426919037,1783014640000,-151.0,0.00026142,2]
[426919041,1783014640000,-1060.39297961,0.00026229,2]
[426919036,1783014640000,-163.028002,0.00026142,2]
[426919039,1783014640000,-163.028002,0.00026142,2]
[426919042,1783014640000,-300.0,0.000265,14]
[426919035,1783014640000,-170.774678,0.00026142,2]
[426919038,1783014640000,-163.028002,0.00026142,2]
[426919040,1783014640000,-163.028002,0.00026142,2]
[426919044,1783014640000,-328.0912516,0.00026599,2]
[426919054,1783014640000,-164.994632,0.00027349,2]
[426919043,1783014640000,-153.383891,0.000265,2]
[426919045,1783014640000,-340.5092966,0.00026599,2]
[426919046,1783014640000,-151.0,0.00026604,2]
[426919047,1783014640000,-151.0,0.00026604,2]
[426919048,1783014640000,-1383.68017368,0.00026665,7]
[426919050,1783014640000,-586.27761167,0.00026959,2]
[426919053,1783014640000,-164.994632,0.00027349,2]
[426919097,1783014640000,-163.028002,0.00027426,7]
[426919049,1783014640000,-610.379073,0.00026678,2]
[426919051,1783014640000,-300.0,0.00027,14]
[426919055,1783014640000,-164.994632,0.00027349,2]
[426919057,1783014640000,-160.0,0.00027349,3]
[426919058,1783014640000,-178.18415637,0.00027397,7]
[426919056,1783014640000,-164.994632,0.00027349,2]
[426919066,1783014640000,-151.0,0.00027421,2]
[426919065,1783014640000,-151.0,0.00027421,2]
[426919060,1783014640000,-342.1113623,0.00027421,2]
[426919061,1783014640000,-154.2679053,0.00027421,2]
[426919059,1783014640000,-231.29827902,0.00027397,2]
[426919064,1783014640000,-151.0,0.00027421,2]
[426919098,1783014640000,-163.028002,0.00027426,7]
[426919094,1783014640000,-170.774678,0.00027426,7]
[426919101,1783014640000,-151.0,0.00027426,2]
[426919137,1783014640000,-170.774678,0.00028,7]
[426919135,1783014640000,-170.774678,0.00028,7]
[426919147,1783014640000,-266.243869,0.00028185,14]
[426919146,1783014640000,-199.590766,0.00028185,14]
[426919138,1783014640000,-163.028002,0.00028,7]
[426919148,1783014640000,-278.922149,0.00028185,14]
[426919141,1783014640000,-163.028002,0.00028,7]
[426919144,1783014640000,-163.00645,0.00028057,14]
[426919140,1783014640000,-163.028002,0.00028,7]
[426919145,1783014640000,-172.062365,0.00028057,14]
[426919139,1783014640000,-151.0,0.00028,7]
[426919143,1783014640000,-1655.20716661,0.00028055,2]
[426919142,1783014640000,-163.028002,0.00028,7]
[426919136,1783014640000,-219.019956,0.00028,7]
[426919149,1783014640000,-1110.12917701,0.00028222,3]
[426919159,1783014640000,-164.2563359,0.00028247,2]
[426919150,1783014640000,-163.676613,0.00028224,14]
[426919160,1783014640000,-151.0,0.00028247,2]
[426919155,1783014640000,-151.0,0.00028245,2]
[426919157,1783014640000,-151.0000001,0.00028245,2]
[426919158,1783014640000,-151.0,0.00028245,2]
[426919156,1783014640000,-151.0,0.00028245,2]
[426919100,1783014640000,-308.33,0.00027426,3]
[426919153,1783014640000,-151.0,0.00028245,2]
[426919152,1783014640000,-151.0,0.00028245,2]
[426919161,1783014640000,-151.0,0.00028247,2]
[426919163,1783014640000,-151.0,0.00028247,2]
[426919162,1783014640000,-151.0,0.00028247,2]
[426919151,1783014640000,-151.0,0.00028243,2]
[426919132,1783014640000,-219.019956,0.00028,7]
[426919154,1783014640000,-151.0,0.00028245,2]
[426919129,1783014640000,-235.0,0.00028,2]
[426919131,1783014640000,-170.774678,0.00028,7]
[426919099,1783014640000,-163.028002,0.00027426,7]
[426919103,1783014640000,-151.0,0.00027426,2]
[426919106,1783014640000,-151.0,0.00027426,2]
[426919095,1783014640000,-163.028002,0.00027426,7]
[426919108,1783014640000,-6819.76299203,0.00027471,2]
[426919105,1783014640000,-151.0,0.00027426,2]
[426919102,1783014640000,-151.0,0.00027426,2]
[426919109,1783014640000,-300.0,0.000275,14]
[426919112,1783014640000,-610.379073,0.00027714,2]
[426919111,1783014640000,-1383.68017369,0.00027708,7]
[426919117,1783014640000,-300.0,0.00027791,2]
[426919114,1783014640000,-164.994632,0.00027791,7]
[426919118,1783014640000,-1348.8065541,0.00027791,2]
[426919113,1783014640000,-164.994632,0.00027791,7]
[426919107,1783014640000,-151.0,0.00027456,2]
[426919115,1783014640000,-164.994632,0.00027791,7]
[426919130,1783014640000,-219.019956,0.00028,7]
[426919116,1783014640000,-164.994632,0.00027791,7]
[426919126,1783014640000,-164.994632,0.00028,7]
[426919127,1783014640000,-233.0,0.00028,2]
[426919133,1783014640000,-170.774678,0.00028,7]
[426919124,1783014640000,-164.994632,0.00028,7]
[426919125,1783014640000,-164.994632,0.00028,7]
[426919134,1783014640000,-219.019956,0.00028,7]
[426919123,1783014640000,-164.994632,0.00028,7]
[426919122,1783014640000,-7242.05606478,0.00028,5]
[426919121,1783014640000,-300.0,0.00028,14]
[426919119,1783014640000,-545.21709438,0.00027969,2]
[426919120,1783014640000,-2913.002259,0.00028,2]
[426919128,1783014640000,-180.0,0.00028,2]
[426919168,1783014641000,-164.994632,0.00028248,7]
[426919174,1783014641000,-219.019956,0.000285,7]
[426919167,1783014641000,-164.994632,0.00028248,7]
[426919169,1783014641000,-164.994632,0.00028248,7]
[426919164,1783014641000,-151.0,0.00028247,2]
[426919166,1783014641000,-164.994632,0.00028248,7]
[426919165,1783014641000,-151.0,0.00028247,2]
[426919173,1783014641000,-300.0,0.000285,14]
[426919172,1783014641000,-200.0,0.00028438,11]
[426919171,1783014641000,-308.335,0.00028397,4]
[426919186,1783014641000,-163.027996,0.000285,7]
[426919170,1783014641000,-305.95097872,0.00028397,4]
[426919182,1783014641000,-163.028002,0.000285,7]
[426919175,1783014641000,-170.774678,0.000285,7]
[426919183,1783014641000,-151.0,0.000285,7]
[426919185,1783014641000,-163.028002,0.000285,7]
[426919192,1783014641000,-1118.92579034,0.0002866,2]
[426919190,1783014641000,-41296.88085757,0.0002863,30]
[426919191,1783014641000,-98892.90201352,0.0002866,2]
[426919189,1783014641000,-572.26,0.0002862,3]
[426919187,1783014641000,-500.0,0.00028517,10]
[426919177,1783014641000,-170.774678,0.000285,7]
[426919184,1783014641000,-163.028002,0.000285,7]
[426919181,1783014641000,-170.774672,0.000285,7]